Cogmind - Beta 12 @@@ ROGUE MODE // 2023.03.28 @ 00:16:41 Player: raddakar Result: Destroyed by S-27 Virus with Autogun Performance ------------- Evolutions (5) 2500 Regions Visited (15) 3000 Robots Destroyed (252) 1260 Value Destroyed (9661) 9661 Prototype IDs (36) 720 Alien Tech Used (0) 0 Bonus (4944) 4944 TOTAL SCORE: 22085 Bonus ------- High Alert Combat Kills 2481 Follower Combat Kills 1279 Entered Garrisons 200 Used RIF Installer 500 Entered DSFs 500 Aligned with FarCom 300 Friendly Fire -316 Cogmind --------- Core Integrity 0/1000 Matter 269/300 Energy 277/290 System Corruption 3% Temperature Cool (9) Movement Walking (190) Ox1 Location -5/Cetus Parts ------- > --- POWER (1) -------- Reinforced Deuterium Engine > --- PROPULSION (4) --- Carbon-fiber Leg Carbon-fiber Leg Carbon-fiber Leg Armored Leg > --- UTILITY (8) ------ Advanced Heat Sink Coolant Injector Huge Storage Unit Enhanced Optical Array Advanced Targeting Computer Improved Launcher Guidance Computer > --- WEAPON (4) ------- (None) > --- INVENTORY (25) --- Carbon-fiber Leg Carbon-fiber Leg Carbon-fiber Leg High-capacity Matter Pod (200) Improved Medium Armor Plating Improved Medium Armor Plating Improved Medium Armor Plating Improved Medium Armor Plating Improved Medium Armor Plating Improved Medium Armor Plating Improved Medium Armor Plating Improved Medium Armor Plating Improved Medium Armor Plating Improved Focal Shield Improved Shock Absorption System Improved Hardlight Generator Improved Hacking Suite Advanced System Shield Improved Dynamic Insulation System High-powered Tractor Beam Peak State ------------ > --- POWER ------------ Quantum Reactor > --- PROPULSION ------- Heavy Treads Heavy Treads > --- UTILITY ---------- Advanced Heat Sink Huge Storage Unit Enhanced Optical Array Advanced Targeting Computer Improved Launcher Guidance Computer Core Analyzer Advanced Powered Armor Improved Corruption Screen > --- WEAPON ----------- Improved Arc Projector Power Sword Plasma Sword Plasma Sword > --- INVENTORY -------- Neutrino Core Neutrino Core Heavy Treads Heavy Treads Advanced Heat Sink Advanced Heat Sink Advanced Heat Sink Advanced Heat Sink Huge Storage Unit Huge Storage Unit Huge Storage Unit High-capacity Matter Pod Transport Network Coupler Phase Shifter Improved Shock Absorption System Improved Hardlight Generator Advanced Shield Generator Improved Hacking Suite Advanced System Shield Improved Dynamic Insulation System High-powered Tractor Beam Heavy Beamcaster Heavy Phase Cannon [Rating: 107] Favorites ----------- Power Heavy Ion Engine Engine Heavy Ion Engine Power Core Reinforced Fission Core Reactor Quantum Reactor Propulsion Heavy Treads Treads Heavy Treads Leg Armored Leg Wheel Armored Wheel Utility Targeting Computer Device Advanced Heat Sink Storage Large Storage Unit Processor Targeting Computer Hackware Relay Coupler [Sentry] Protection Improved Medium Armor Plating Weapon Autogun Energy Gun Improved EM Shotgun Energy Cannon Heavy Phase Cannon Ballistic Gun Autogun Ballistic Cannon Linear Accelerator Launcher Heavy Shock Bomb Launcher Special Weapon Field Lobotomy Kit Impact Weapon Thunder Hammer Slashing Weapon Plasma Sword Build | -11 -10 -9 -9 -9 -8 -8 -7 -7 -7 -6 -5 -5 -5 -5 -5 ------- Run | Jun Mat Mat Min Exi Min Mat Fac DSF Gar Fac Fac Was Fac Ext Cet Slots Evolved 10 | . . 2 . . . 2 2 . . 2 2 . . . . Power . | . . . . . . . . . . . . . . . . Propulsion 2 | . . . . . . . . . . 1 1 . . . . Utility 6 | . . 1 . . . 1 2 . . 1 1 . . . . Weapon 2 | . . 1 . . . 1 . . . . . . . . . Parts Attached 231 | . 8 16 3 8 . 12 2 6 31 58 22 5 22 33 5 Power 22 | . 1 3 . 1 . 1 . . 2 5 2 1 3 3 . Engine 13 | . 1 3 . 1 . 1 . . . 4 1 . . 2 . Core 6 | . . . . . . . . . 2 . 1 . 2 1 . Reactor 3 | . . . . . . . . . . 1 . 1 1 . . Propulsion 55 | . 2 3 1 2 . 3 . 1 4 22 3 . 1 9 4 Treads 24 | . 1 2 1 1 . 3 . 1 4 3 2 . 1 5 . Leg 26 | . . . . . . . . . . 17 1 . . 4 4 Wheel 5 | . 1 1 . 1 . . . . . 2 . . . . . Hover . | . . . . . . . . . . . . . . . . Flight . | . . . . . . . . . . . . . . . . Utility 74 | . 2 2 . 3 . 7 2 5 12 11 8 3 6 12 1 Device 31 | . 1 . . 1 . 3 . 1 7 4 4 2 3 5 . Storage 8 | . 1 2 . 2 . . . . 1 1 . . 1 . . Processor 13 | . . . . . . 1 . . . 6 4 . 1 1 . Hackware 2 | . . . . . . . . . 2 . . . . . . Protection 20 | . . . . . . 3 2 4 2 . . 1 1 6 1 Artifact . | . . . . . . . . . . . . . . . . Weapon 80 | . 3 8 2 2 . 1 . . 13 20 9 1 12 9 . Energy Gun 20 | . 2 5 2 1 . . . . . 4 . . 5 1 . Energy Cannon 3 | . 1 . . . . . . . . . . . 1 1 . Ballistic Gun 38 | . . 3 . 1 . 1 . . 13 10 3 . 2 5 . Ballistic Cannon 8 | . . . . . . . . . . 4 . 1 1 2 . Launcher 4 | . . . . . . . . . . . 4 . . . . Special Weapon 2 | . . . . . . . . . . 2 . . . . . Impact Weapon 2 | . . . . . . . . . . . 2 . . . . Slashing Weapon 3 | . . . . . . . . . . . . . 3 . . Piercing Weapon . | . . . . . . . . . . . . . . . . Special Melee Weapon . | . . . . . . . . . . . . . . . . Unidentified Prototypes 8 | . . 3 . . . . . . 1 1 1 . 2 . . Parts Lost 69 | . 1 . 1 . . . . 1 8 28 2 . 3 16 9 Power 6 | . . . . . . . . . 1 3 . . 1 1 . Propulsion 20 | . 1 . . . . . . . 2 10 . . 1 2 4 Utility 17 | . . . . . . . . 1 3 4 . . 1 5 3 Weapon 26 | . . . 1 . . . . . 2 11 2 . . 8 2 Highest Loss Streak 9 | . 1 . 1 . . . . 1 3 9 2 . 1 4 9 To Critical Strikes . | . . . . . . . . . . . . . . . . Average Slot Usage (%) 88 | . 98 96 97 100 100 69 72 68 73 95 86 81 87 92 85 Engine 4 | . 14 10 11 11 11 9 7 7 1 2 3 . . . 5 Core 1 | . . . . . . . . . 4 1 1 1 . 4 . Reactor 1 | . . . . . . . . . . 2 . 3 4 . . Treads 9 | . 1 11 11 11 11 9 7 6 13 4 10 11 11 8 . Leg 5 | . 25 . . . . . . . . 15 1 . . 11 23 Wheel 3 | . . 10 11 11 11 9 7 7 1 . . . . . . Device 8 | . 13 1 . 3 . 10 7 1 10 7 10 11 9 11 11 Storage 12 | . 14 30 33 29 33 15 7 7 7 6 2 . 2 5 5 Processor 13 | . . . . . . 2 7 7 1 27 31 33 26 19 23 Protection 3 | . . . . . . 4 18 21 4 . . 1 5 7 5 Energy Gun 6 | . 13 20 19 22 22 . . . . 1 1 . 6 1 . Energy Cannon 1 | . 12 1 . . . . . . . . . . 1 4 . Ballistic Gun 11 | . 2 10 11 11 11 9 7 7 26 19 3 11 3 10 3 Ballistic Cannon 1 | . . . . . . . . . . 3 1 4 1 2 3 Slashing Weapon 1 | . . . . . . . . . . . . . 9 . . Naked Turns . | . . . . . . . . . . . . . . . . Heaviest Build 150 | 11 23 57 57 57 51 58 61 79 79 52 51 60 139 150 119 Greatest Support 140 | 20 20 40 12 12 12 20 12 12 44 72 140 140 140 140 64 Greatest Overweight (x) 13 | . 2 4 4 4 4 4 5 6 13 10 . . . 2 2 Average Overweight (x) 1 | . . 3 4 3 4 3 4 5 . . . . . 1 1 Largest Inventory Capacity 25 | 8 10 15 15 15 15 15 15 15 15 15 15 5 25 25 25 Average Capacity 16 | 8 9 14 15 15 15 15 15 15 15 15 7 5 16 25 25 Most Carried 25 | 6 10 15 15 15 15 15 15 15 15 15 15 5 25 25 25 Average Carried 15 | 6 9 13 13 14 14 14 15 14 14 14 6 4 14 24 24 Final Capacity 25 | 8 10 15 15 15 15 15 15 15 15 15 5 5 25 25 25 Final Carried 25 | 6 9 15 13 15 15 15 15 15 15 15 5 5 24 25 20 Class Distribution -------------------- 28% | Gunner 25% | Scavenger-Gunner 18% | Mutant 8% | Scavenger-Mutant 7% | Skirmisher 6% | Scavenger-Tank 5% | Tank Dominant Class ---------------- Mutant | -10/Materials Gunner | -9/Materials Gunner | -9/Mines Gunner | -9/Exiles Skirmisher | -8/Mines Skirmisher | -8/Materials Tank | -7/Factory Tank | -7/DSF Scavenger-Gunner | -7/Garrison Scavenger-Gunner | -6/Factory Mutant | -5/Factory Gunner | -5/Waste Mutant | -5/Factory Scavenger-Gunner | -5/Extension Scavenger-Mutant | -5/Cetus Resources | -11 -10 -9 -9 -9 -8 -8 -7 -7 -7 -6 -5 -5 -5 -5 -5 ----------- Run | Jun Mat Mat Min Exi Min Mat Fac DSF Gar Fac Fac Was Fac Ext Cet Matter Collected 9171 | 194 81 381 126 90 . 1000 35 193 1891 2815 278 171 453 1361 102 Remotely 1681 | . . . . . . 845 35 70 731 . . . . . . Salvage Created 12867 | . 407 910 469 . . 1689 52 547 1425 3686 510 . 1397 1680 95 Parts 595 | . 18 67 37 . . 76 2 33 77 132 22 . 61 65 5 Haulers Intercepted 13 | . . 2 . . . 4 1 1 . 2 . . 3 . . Recyclers Shooed 18 | . 1 1 . . . . . . . 10 1 . 2 3 . Parts Field Recycled . | . . . . . . . . . . . . . . . . Retrieved Matter . | . . . . . . . . . . . . . . . . Parts Self-Destructed . | . . . . . . . . . . . . . . . . Prevented . | . . . . . . . . . . . . . . . . Kills | -11 -10 -9 -9 -9 -8 -8 -7 -7 -7 -6 -5 -5 -5 -5 -5 ------- Run | Jun Mat Mat Min Exi Min Mat Fac DSF Gar Fac Fac Was Fac Ext Cet Combat Hostiles Destroyed 202 | . 8 20 15 . . 26 . 10 41 42 5 . 12 22 1 Melee 2 | . . . . . . . . . . . . . 2 . . Guns 168 | . 7 20 11 . . 25 . 10 41 31 5 . 8 9 1 Cannons 23 | . 1 . . . . . . . . 9 . . 2 11 . AOE 7 | . . . 4 . . 1 . . . 2 . . . . . Classes Destroyed 18 | . 2 6 . . . 2 . 2 1 4 . . . 1 . Worker 10 | . . 2 . . . 1 . . . 4 . . 2 1 . Builder 7 | . . . . . . 1 . . . . 1 . 2 3 . Tunneler 3 | . . 1 1 . . . . . . 1 . . . . . Hauler 13 | . . 2 . . . 4 1 1 . 2 . . 3 . . Recycler 21 | . 1 1 1 . . 3 . . . 10 1 . 2 2 . Operator 1 | . . . . . . . . . . 1 . . . . . Watcher 4 | . . 1 . . . 1 . . . . . . 1 . 1 Swarmer 61 | . . 10 9 . . 4 . 4 30 4 . . . . . Grunt 85 | . 8 6 6 . . 17 . 2 9 21 4 . 4 8 . Brawler 4 | . . . . . . . . . . 4 . . . . . Duelist 4 | . . . . . . 1 . . . 3 . . . . . Protector 1 | . . . . . . . . . . 1 . . . . . Sentry 25 | . . 4 . . . 4 . . 1 2 1 . 2 11 . Specialist 7 | . . . . . . . . 3 . 4 . . . . . Hunter 3 | . . . . . . . . . . 1 . . 2 . . Programmer 7 | . . . . . . . . . 1 2 . . 4 . . Heavy 1 | . . . . . . . . 1 . . . . . . . Behemoth 2 | . . . . . . . . . . . . . . 2 . Cetus Guard 1 | . . . . . . . . . . . . . . . 1 Thug 2 | . . . . . . . . . . . . . 1 1 . Best Kill Streak 11 | . 3 7 3 . . 6 1 6 8 11 6 . 5 4 2 Combat Bots Only 8 | . 3 6 3 . . 4 . 6 8 7 4 . 3 4 1 Max Kills in Single Turn 2 | . 1 2 2 . . 2 1 2 2 2 1 . 2 1 1 Gunslinging 1 | . . 1 1 . . . . . 1 . . . . . . Exploded 2 | . . . 2 . . 1 . . . 2 . . . . . Melee 1 | . . . . . . . . . . . . . 1 . . Uniques/NPCs Destroyed . | . . . . . . . . . . . . . . . . Combat | -11 -10 -9 -9 -9 -8 -8 -7 -7 -7 -6 -5 -5 -5 -5 -5 -------- Run | Jun Mat Mat Min Exi Min Mat Fac DSF Gar Fac Fac Was Fac Ext Cet Damage Taken 19338 | . 429 622 394 . . 264 . 705 2642 5391 897 . 1350 4374 2270 Core 2473 | . 74 65 92 . . 28 . 38 418 747 85 . 180 371 375 Absorbed by Shields 948 | . 135 . . . . . . . . . . . . 813 . Redirected to Shielding 102 | . . . . . . . . . . . . . . 102 . Regen/Repaired (Parts) 5 | . . . . . . . . . . . . 5 . . . Core Remaining (%) 61 | 100 70 . . . 60 94 . . 34 12 . . . . . Volleys Fired 742 | . 39 66 32 . . 59 1 22 109 176 25 . 64 137 12 Largest 4 | . 2 3 3 . . 1 1 1 4 4 2 . 4 4 2 Hottest 236 | . 105 113 113 . . 60 60 60 97 160 66 . 236 210 90 Shots Fired 1683 | . 56 108 59 . . 59 1 22 334 553 39 . 129 300 23 Gun 1467 | . 36 108 59 . . 59 1 22 334 471 38 . 116 211 12 Cannon 210 | . 20 . . . . . . . . 77 . . 13 89 11 Launcher 1 | . . . . . . . . . . . 1 . . . . Special 5 | . . . . . . . . . . 5 . . . . . Kinetic 1387 | . . 66 32 . . 59 1 22 334 509 38 . 54 249 23 Thermal 136 | . 20 . . . . . . . . 39 . . 26 51 . Explosive . | . . . . . . . . . . . . . . . . Electromagnetic 155 | . 36 42 27 . . . . . . . 1 . 49 . . Robot Hit Streak 41 | . 8 13 5 . . 12 3 10 14 41 12 . 17 16 11 Robot Miss Streak 11 | . 3 6 6 . . 6 1 5 11 4 2 . 3 3 3 Penetration Max 1 | . . . . . . . . . . 1 1 . 1 1 1 Secondary Targets 32 | . . 1 2 . . . . . 18 9 1 . 1 . . Max Gunslinging Chain 1 | . . 1 1 . . . . . 1 1 1 . 1 . . Shots Hit Robots 1177 | . 43 69 33 . . 58 1 22 153 438 29 . 105 209 17 Core Hits 576 | . 21 42 22 . . 55 1 18 76 197 16 . 50 69 9 Critical Kills 7 | . . . . . . . . . . 4 1 . . 2 . Critical Parts Destroyed 7 | . . . . . . . . . . 3 1 . 1 2 . Critical Strikes 39 | . . . . . . . . . . 20 2 . 5 10 2 Burn 7 | . . . . . . . . . . 5 . . 2 . . Meltdown 2 | . . . . . . . . . . . . . . 2 . Destroy 13 | . . . . . . . . . . 7 2 . 1 3 . Blast 15 | . . . . . . . . . . 8 . . . 5 2 Sever 2 | . . . . . . . . . . . . . 2 . . Melee Attacks 13 | . . . . . . . . . . . . . 13 . . Impact . | . . . . . . . . . . . . . . . . Slashing 13 | . . . . . . . . . . . . . 13 . . Piercing . | . . . . . . . . . . . . . . . . Sneak Attacks 3 | . . . . . . . . . . . . . 3 . . Combat Hostiles 1 | . . . . . . . . . . . . . 1 . . Follow-up Attacks 1 | . . . . . . . . . . . . . 1 . . Damage Inflicted 29556 | . 717 1101 745 . . 3091 50 1244 3461 9009 882 . 3024 5653 579 Guns 23103 | . 460 1101 466 . . 2975 50 1244 3461 6783 755 . 1921 3590 297 Cannons 4679 | . 226 . . . . . . . . 1799 . . 328 2044 282 Explosions 1253 | . 31 . 279 . . 114 . . . 409 127 . 293 . . Melee 466 | . . . . . . . . . . . . . 466 . . Ramming 55 | . . . . . . 2 . . . 18 . . 16 19 . Kinetic 23464 | . . 554 201 . . 2975 50 1244 3461 7877 755 . 1316 4452 579 Thermal 3620 | . 257 . 279 . . . . . . 1114 . . 788 1182 . Explosive 114 | . . . . . . 114 . . . . . . . . . Electromagnetic 1837 | . 460 547 265 . . . . . . . 127 . 438 . . Impact . | . . . . . . . . . . . . . . . . Slashing 466 | . . . . . . . . . . . . . 466 . . Piercing . | . . . . . . . . . . . . . . . . Highest Corruption 3 | . . . . . . . . . 1 1 . . . 3 3 Average Corruption 1 | . . . . . . . . . 1 1 . . . 1 3 Corruption Purged . | . . . . . . . . . . . . . . . . Corruption Blocked 10 | . . . . . . . . . . . . . 5 5 . Effects 16 | . . . . . . . . . 3 2 . . . 9 2 Message Errors 3 | . . . . . . . . . 1 1 . . . 1 . Matter Fused 4 | . . . . . . . . . 1 . . . . 3 . Heat Flow Errors 4 | . . . . . . . . . 1 1 . . . 2 . Energy Discharges 2 | . . . . . . . . . . . . . . 2 . Data Loss (major) 1 | . . . . . . . . . . . . . . . 1 Misfires 1 | . . . . . . . . . . . . . . 1 . Weapon Failures 1 | . . . . . . . . . . . . . . . 1 Overload Shots . | . . . . . . . . . . . . . . . . Overflow Damage 247 | . . . . . . . . . . 113 . . 101 33 . Projectiles 47 | . . . . . . . . . . 14 . . . 33 . Explosions 126 | . . . . . . . . . . 99 . . 27 . . Melee 74 | . . . . . . . . . . . . . 74 . . Knockbacks 27 | . . . . . . . . . . 25 . . 1 1 . Impact . | . . . . . . . . . . . . . . . . Kinetic 21 | . . . . . . . . . . 19 . . 1 1 . Secondary 6 | . . . . . . . . . . 6 . . . . . Self-Inflicted Damage 375 | . 22 . 60 . . 1 . . . 257 . . 35 . . Shots 8 | . 1 . 2 . . . . . . 4 . . 1 . . Rammed 3 | . . . . . . 2 . . . . . . 1 . . Targets Rammed 9 | . 1 . . . . 2 . . . 1 . . 2 3 . Kicked 5 | . 1 . . . . . . . . 1 . . . 3 . Crushed 1 | . . . . . . . . . . . . . 1 . . Highest Temperature 784 | . 313 208 181 . . 291 45 210 784 255 10 . 505 354 4 Average Temperature 118 | . 121 64 47 . . 99 30 83 180 59 6 . 194 91 4 Received Heat Transfer 4663 | . 210 153 81 . . 153 . 54 270 1903 421 . 153 959 306 Effects 31 | . 1 . . . . . . . 25 . . . 4 1 . Shutdowns 5 | . . . . . . . . . 4 . . . 1 . . Energy Bleed 4 | . 1 . . . . . . . 2 . . . . 1 . Interference 8 | . . . . . . . . . 8 . . . . . . Matter Decay 1 | . . . . . . . . . 1 . . . . . . Short Circuit 2 | . . . . . . . . . 2 . . . . . . Damage (minor) 2 | . . . . . . . . . 2 . . . . . . Damage (major) 7 | . . . . . . . . . 4 . . . 3 . . Damage (core) 2 | . . . . . . . . . 2 . . . . . . Siege Activations . | . . . . . . . . . . . . . . . . Robots Corrupted . | . . . . . . . . . . . . . . . . Combat Hostiles . | . . . . . . . . . . . . . . . . Parts Fried 6 | . 1 2 1 . . . . . . . . . 2 . . Impact Corruptions . | . . . . . . . . . . . . . . . . Robots Melted 2 | . . . . . . . . . . . . . . 2 . Combat Hostiles 2 | . . . . . . . . . . . . . . 2 . Parts Melted 6 | . 1 . . . . . . . . 1 . . 1 3 . Heat Transferred 5223 | . 531 . 250 . . . . . . 1408 . . 1138 1896 . Parts Sabotaged . | . . . . . . . . . . . . . . . . Parts Stolen . | . . . . . . . . . . . . . . . . Parts Stripped . | . . . . . . . . . . . . . . . . Power Chain Reactions 6 | . 1 . 4 . . . . . . . . . 1 . . Missiles Intercepted . | . . . . . . . . . . . . . . . . Alert | -11 -10 -9 -9 -9 -8 -8 -7 -7 -7 -6 -5 -5 -5 -5 -5 ------- Run | Jun Mat Mat Min Exi Min Mat Fac DSF Gar Fac Fac Was Fac Ext Cet Peak Influence 1501 | . 187 264 314 . . 705 271 429 1501 1405 641 224 900 499 301 Initial 787 | . . 8 102 . . . 252 189 321 787 641 202 16 441 251 Average 519 | . 72 98 167 . . 358 265 332 1074 1050 599 157 502 349 267 Maximum Alert Level 4 | . . 1 1 . . 3 1 2 4 4 2 1 3 2 1 Low Security (%) 24 | 100 100 85 69 . 100 26 . 13 . . . 71 6 7 . Level 1 23 | . . 14 30 . . 25 100 60 4 . . 28 19 52 100 Level 2 25 | . . . . . . 46 . 25 11 . 100 . 61 40 . Level 3 14 | . . . . . . 1 . . 32 57 . . 12 . . Level 4 12 | . . . . . . . . . 50 42 . . . . . Level 5 . | . . . . . . . . . . . . . . . . High Security . | . . . . . . . . . . . . . . . . Max Security . | . . . . . . . . . . . . . . . . Sterilizations 1 | . . . . . . . . 1 . . . . . . . Squads Dispatched 30 | . 1 1 . . . 3 . 2 . 14 . . 6 3 . Investigation 5 | . . . . . . 1 . . . 1 . . 1 2 . Extermination 4 | . . . . . . . . . . 2 . . 2 . . Reinforcement 17 | . 1 1 . . . 2 . 2 . 7 . . 3 1 . Assault 4 | . . . . . . . . . . 4 . . . . . Garrison . | . . . . . . . . . . . . . . . . Intercept . | . . . . . . . . . . . . . . . . Searches Triggered . | . . . . . . . . . . . . . . . . Construction Impeded . | . . . . . . . . . . . . . . . . Haulers Reinforced 4 | . . . . . . . . . . 2 . . 2 . . Active Scanning Responses . | . . . . . . . . . . . . . . . . Cargo Convoy Interrupts . | . . . . . . . . . . . . . . . . Stealth | -11 -10 -9 -9 -9 -8 -8 -7 -7 -7 -6 -5 -5 -5 -5 -5 --------- Run | Jun Mat Mat Min Exi Min Mat Fac DSF Gar Fac Fac Was Fac Ext Cet Distress Signals 14 | . 1 2 . . . . . . . 7 . . 2 2 . Communications Jammed . | . . . . . . . . . . . . . . . . Distress Signals . | . . . . . . . . . . . . . . . . Times Spotted 308 | . 15 26 17 . . 30 . 10 48 78 6 . 32 36 10 Peak Tracking Total 10 | . 3 5 3 . . 4 . 4 6 10 5 . 5 6 8 Tactical Retreats 10 | . . . 1 . . . . . 4 1 . . . 4 . Traps | -11 -10 -9 -9 -9 -8 -8 -7 -7 -7 -6 -5 -5 -5 -5 -5 ------- Run | Jun Mat Mat Min Exi Min Mat Fac DSF Gar Fac Fac Was Fac Ext Cet Traps Triggered 16 | . . 1 . . . 1 . 1 3 2 2 . 1 5 . Indirectly 1 | . . . . . . . . . . . 1 . . . . Trap Hack Attempts . | . . . . . . . . . . . . . . . . Triggered . | . . . . . . . . . . . . . . . . Disarmed . | . . . . . . . . . . . . . . . . Reprogrammed . | . . . . . . . . . . . . . . . . Reused . | . . . . . . . . . . . . . . . . Traps Extracted . | . . . . . . . . . . . . . . . . Installed . | . . . . . . . . . . . . . . . . Triggered 1 | . . . . . . . . . . . 1 . . . . Machines | -11 -10 -9 -9 -9 -8 -8 -7 -7 -7 -6 -5 -5 -5 -5 -5 ---------- Run | Jun Mat Mat Min Exi Min Mat Fac DSF Gar Fac Fac Was Fac Ext Cet Machines Disabled 30 | . . . 1 . . 6 . 1 3 10 . . 7 2 . Max in Single Turn 4 | . . . 1 . . 1 . 1 1 4 . . 2 1 . Garrison Access 2 | . . . . . . . . . . . 1 . 1 . . Garrison Relay 3 | . . . . . . . . . 3 . . . . . . Machines Repaired . | . . . . . . . . . . . . . . . . Machines Sabotaged . | . . . . . . . . . . . . . . . . Overloaded Fab Kills . | . . . . . . . . . . . . . . . . Hacking | -11 -10 -9 -9 -9 -8 -8 -7 -7 -7 -6 -5 -5 -5 -5 -5 --------- Run | Jun Mat Mat Min Exi Min Mat Fac DSF Gar Fac Fac Was Fac Ext Cet Machines Accessed 23 | . 1 2 . 4 . . 2 . 2 1 1 . 6 4 . Terminals 15 | . 1 2 . . . . 2 . 2 1 . . 3 4 . Fabricators . | . . . . . . . . . . . . . . . . Repair Stations 2 | . . . . . . . . . . . . . 2 . . Recycling Units . | . . . . . . . . . . . . . . . . Scanalyzers . | . . . . . . . . . . . . . . . . Garrison Access 2 | . . . . . . . . . . . 1 . 1 . . Total Hacks 72 | . 4 7 . 27 . . 3 . 6 6 1 . 12 6 . Successful 46 | . 2 3 . 27 . . 2 . . 3 1 . 5 3 . Failed 26 | . 2 4 . . . . 1 . 6 3 . . 7 3 . Catastrophic 7 | . . 1 . . . . . . 2 2 . . . 2 . Database Lockouts . | . . . . . . . . . . . . . . . . Manual 1 | . . . . 1 . . . . . . . . . . . Terminals 38 | . 4 7 . . . . 3 . 6 6 . . 6 6 . Fabricators . | . . . . . . . . . . . . . . . . Repair Stations 5 | . . . . . . . . . . . . . 5 . . Recycling Units . | . . . . . . . . . . . . . . . . Scanalyzers . | . . . . . . . . . . . . . . . . Garrison Access 2 | . . . . . . . . . . . 1 . 1 . . Terminal Hacks 43 | . 2 3 . 27 . . 2 . . 3 . . 3 3 . Record 27 | . 1 . . 26 . . . . . . . . . . . Prototype ID Bank 2 | . . . . . . . 1 . . . . . 1 . . Open Door 4 | . . . . . . . . . . . . . 1 3 . Open DSF 1 | . . . . . . . 1 . . . . . . . . Emergency Access Points 2 | . . . . . . . . . . 1 . . 1 . . Terminal Index 1 | . 1 . . . . . . . . . . . . . . Repair Station Index 1 | . . . . . . . . . . 1 . . . . . Alert Level 1 | . . 1 . . . . . . . . . . . . . Dispatch Records 1 | . . 1 . . . . . . . . . . . . . Maintenance Status 1 | . . . . . . . . . . 1 . . . . . Security Status 1 | . . 1 . . . . . . . . . . . . . EX-Prototype ID Bank 1 | . . . . 1 . . . . . . . . . . . Fabricator Hacks . | . . . . . . . . . . . . . . . . Repair Station Hacks 1 | . . . . . . . . . . . . . 1 . . Scan Component 1 | . . . . . . . . . . . . . 1 . . Recycling Unit Hacks . | . . . . . . . . . . . . . . . . Scanalyzer . | . . . . . . . . . . . . . . . . Garrison Access Hacks 2 | . . . . . . . . . . . 1 . 1 . . Seal Access 2 | . . . . . . . . . . . 1 . 1 . . Unauthorized Hacks . | . . . . . . . . . . . . . . . . Terminals . | . . . . . . . . . . . . . . . . Fabricators . | . . . . . . . . . . . . . . . . Repair Stations . | . . . . . . . . . . . . . . . . Recycling Units . | . . . . . . . . . . . . . . . . Scanalyzers . | . . . . . . . . . . . . . . . . Garrison Access . | . . . . . . . . . . . . . . . . Data Cores Recovered 1 | . . . . . . . . . . 1 . . . . . Used 1 | . . . . . . . . . . 1 . . . . . Hacking Detections 13 | . 1 2 . . . . 1 . 2 1 . . 4 2 . Full Trace Events 2 | . . . . . . . . . . . . . 1 1 . Feedback Events . | . . . . . . . . . . . . . . . . Feedback Blocked . | . . . . . . . . . . . . . . . . Robot Schematics Acquired . | . . . . . . . . . . . . . . . . Robots Built . | . . . . . . . . . . . . . . . . Authchips . | . . . . . . . . . . . . . . . . Time . | . . . . . . . . . . . . . . . . Total Robot Build Rating . | . . . . . . . . . . . . . . . . Part Schematics Acquired . | . . . . . . . . . . . . . . . . Parts Built . | . . . . . . . . . . . . . . . . Authchips . | . . . . . . . . . . . . . . . . Time . | . . . . . . . . . . . . . . . . Total Part Build Rating . | . . . . . . . . . . . . . . . . Parts Repaired . | . . . . . . . . . . . . . . . . Time . | . . . . . . . . . . . . . . . . Parts Recycled . | . . . . . . . . . . . . . . . . Recycled Matter . | . . . . . . . . . . . . . . . . Retrieved Matter . | . . . . . . . . . . . . . . . . Retrieved Components . | . . . . . . . . . . . . . . . . Parts Scanalyzed . | . . . . . . . . . . . . . . . . Part Schematics Acquired . | . . . . . . . . . . . . . . . . Parts Damaged . | . . . . . . . . . . . . . . . . Bothacking | -11 -10 -9 -9 -9 -8 -8 -7 -7 -7 -6 -5 -5 -5 -5 -5 ------------ Run | Jun Mat Mat Min Exi Min Mat Fac DSF Gar Fac Fac Was Fac Ext Cet Used RIF Installer 1 | . . . . . . . . . 1 . . . . . . Robots Hacked . | . . . . . . . . . . . . . . . . Non-combat . | . . . . . . . . . . . . . . . . Combat . | . . . . . . . . . . . . . . . . Robot Hacks Applied . | . . . . . . . . . . . . . . . . Relay Couplers Released 14 | . . . . . . . . . 14 . . . . . . Machine Destruction 10 | . . . . . . . . . 10 . . . . . . Programmers 4 | . . . . . . . . . 4 . . . . . . Attached 2 | . . . . . . . . . 2 . . . . . . Fabnet Peak Effective % . | . . . . . . . . . . . . . . . . Robots Rewired 10 | . . . . . . . . . . . . . . 10 . Allies Hacked 1 | . . . . . . . . . . . . . 1 . . Hacks Repelled . | . . . . . . . . . . . . . . . . Allies | -11 -10 -9 -9 -9 -8 -8 -7 -7 -7 -6 -5 -5 -5 -5 -5 -------- Run | Jun Mat Mat Min Exi Min Mat Fac DSF Gar Fac Fac Was Fac Ext Cet Total Allies 38 | . . . . . . . . . . 4 . 20 . 14 . Largest Group 20 | . . . . . . . . . . 3 . 20 17 7 . Highest-Rated Group 829 | . . . . . . . . . . 95 . 829 748 194 . Highest-Rated Ally 50 | . . . . . . . . . . 37 . 50 50 39 . Total Orders . | . . . . . . . . . . . . . . . . Ally Attacks 250 | . . . . . . . . . . 58 . 6 135 51 . Total Damage 6128 | . . . . . . . . . . 873 . 146 3923 1186 . Kills 37 | . . . . . . . . . . 5 . 1 22 9 . Allies Corrupted 2 | . . . . . . . . . . . . . 1 1 . Allies Melted 1 | . . . . . . . . . . . . . . 1 . Field Lobotomies 4 | . . . . . . . . . . 4 . . . . . Intel | -11 -10 -9 -9 -9 -8 -8 -7 -7 -7 -6 -5 -5 -5 -5 -5 ------- Run | Jun Mat Mat Min Exi Min Mat Fac DSF Gar Fac Fac Was Fac Ext Cet Robot Analysis Total . | . . . . . . . . . . . . . . . . Derelict Logs Recovered 2 | . . . 2 . . . . . . . . . . . . Drone Launches . | . . . . . . . . . . . . . . . . Drone Recoveries . | . . . . . . . . . . . . . . . . Exploration | -11 -10 -9 -9 -9 -8 -8 -7 -7 -7 -6 -5 -5 -5 -5 -5 ------------- Run | Jun Mat Mat Min Exi Min Mat Fac DSF Gar Fac Fac Was Fac Ext Cet Turns Passed 14278 | 2 450 1033 1264 919 123 910 215 232 1607 2068 565 501 1841 2461 87 Spaces Moved 7336 | 2 193 566 784 623 82 529 132 107 855 1082 290 306 965 796 24 Core 3 | . . . . . . . . . 1 2 . . . . . Treads 2924 | . 2 17 . . . 8 . . 740 192 260 306 965 434 . Legs 1454 | 2 169 . . . . . . . . 867 30 . . 362 24 Wheels 2955 | . 22 549 784 623 82 521 132 107 114 21 . . . . . Hover . | . . . . . . . . . . . . . . . . Flight . | . . . . . . . . . . . . . . . . Fastest Speed 105 | 120 110 110 150 135 150 135 150 150 145 105 120 160 160 160 190 Average Speed 158 | 120 161 144 150 144 150 150 160 172 152 131 155 160 160 235 192 Slowest Speed 700 | 120 240 240 150 150 150 320 165 180 700 550 160 160 160 260 260 Overloaded Moves . | . . . . . . . . . . . . . . . . Propulsion Burnouts . | . . . . . . . . . . . . . . . . Robots Hopped 2 | . . . . . . . . . . . . . 2 . . Cave-ins Triggered . | . . . . . . . . . . . . . . . . Exploration Rate (%) 42 | 1 38 42 97 72 19 38 4 79 61 20 7 90 22 77 19 Regions Visited 15 Branch Regions 5 Pre-discovered Areas . | . . . . . . . . . . . . . . . . Known Exits Taken 2 | . . . . . . 1 1 . . . . . . . . Unknown Exits Taken 9 | 1 1 1 1 1 1 . . . . 1 . . 1 1 . Scrap Searched 3 | . . . 3 . . . . . . . . . . . . Spaces Dug 1 | . . . . . . . . . . . . . . 1 . Terrain Destroyed 272 | . 2 . 17 . . 70 . . . 43 1 . 88 45 6 Melee . | . . . . . . . . . . . . . . . . Projectile 111 | . . . . . . 47 . . . 2 1 . 10 45 6 AOE 161 | . 2 . 17 . . 23 . . . 41 . . 78 . . Terrain Rammed . | . . . . . . . . . . . . . . . . Walls Destroyed . | . . . . . . . . . . . . . . . . Machines Disabled . | . . . . . . . . . . . . . . . . Actions | -11 -10 -9 -9 -9 -8 -8 -7 -7 -7 -6 -5 -5 -5 -5 -5 --------- Run | Jun Mat Mat Min Exi Min Mat Fac DSF Gar Fac Fac Was Fac Ext Cet Total 8972 | 1 276 704 820 646 83 650 134 158 1073 1383 374 319 1140 1170 41 Wait 110 | . 21 5 1 . . 14 . . 29 1 . . 13 26 . Move 7315 | 1 192 565 783 622 81 528 131 106 850 1081 290 305 961 795 24 Hop 1 | . . . . . . . . . . . . . 1 . . Pick Up 215 | . 8 28 . 5 1 14 . 6 17 37 2 2 37 58 . Fast Attach 99 | . 3 2 . . . 4 2 3 17 26 17 4 16 5 . Attach 114 | . 4 12 2 8 . 4 . 1 16 26 4 . 6 26 5 Detach 15 | . . 3 . . . 1 . 1 3 2 5 . . . . Swap 21 | . 1 2 1 . . 4 . 2 1 6 1 1 . 2 . Drop 227 | . 7 21 1 11 1 20 . 9 19 27 30 7 29 45 . Fire 742 | . 39 66 32 . . 59 1 22 109 176 25 . 64 137 12 Melee 11 | . . . . . . . . . . . . . 11 . . Ram 2 | . . . . . . 2 . . . . . . . . . Kick 5 | . 1 . . . . . . . . 1 . . . 3 . Crush 2 | . . . . . . . . . . . . . 2 . . Escape Stasis 20 | . . . . . . . . 8 8 . . . . 4 . Rewire 73 | . . . . . . . . . 4 . . . . 69 . Trap . | . . . . . . . . . . . . . . . . Miscellaneous . | . . . . . . . . . . . . . . . . Route ------- -11/Junkyard -10/Materials (discovered 3 exits: *Mat / [*Min x2]) -9/Materials (discovered 3 exits: [*Mat] / [*Min x2]) -9/Mines (discovered 3 exits: [*Mat x2] / *Exi) -9/Exiles -8/Mines -8/Materials (discovered 3 exits: *Fac x3) -7/Factory -7/DSF -7/Garrison (discovered 3 exits: *Fac x3) -6/Factory -5/Factory -5/Waste -5/Factory (discovered 2 exits: [*Upp] / *Ext) -5/Extension (discovered 2 exits: [*Fac] / [*Cet]) -5/Cetus History --------- Turn | Location | Event 1 | -11/Junkyard | Discovered new exit (range 1) 3 | -11/Junkyard | Entered Materials 159 | -10/Materials | Discovered new exit (range 16) 296 | -10/Materials | Discovered new exit (range 4) 303 | -10/Materials | Build established: Mutant 311 | -10/Materials | Discovered new exit (range 15) 453 | -10/Materials | Entered another Materials area 453 | -9/Materials | Evolved 2 slots: Utility x1, Weapon x1 640 | -9/Materials | Discovered new exit (range 16) 884 | -9/Materials | Build established: Gunner 1070 | -9/Materials | Discovered new exit (range 3) 1369 | -9/Materials | Discovered new exit (range 8) 1486 | -9/Materials | Entered Mines 1615 | -9/Mines | Learned location of 1 exit from Materials 1858 | -9/Mines | Discovered new exit (range 6) 2159 | -9/Mines | Learned 2 Materials zone layouts 2178 | -9/Mines | Discovered new exit (range 7) 2740 | -9/Mines | Deemed a non-threat by the Exiles lab entrance 2741 | -9/Mines | Discovered new exit (range 5) 2750 | -9/Mines | Entered Exiles 2803 | -9/Exiles | Met 8R-AWN 2834 | -9/Exiles | Met EX-HEX 2897 | -9/Exiles | Met EX-BIN 2945 | -9/Exiles | Aligned with FarCom system 2947 | -9/Exiles | Given EX-Vault access code 2992 | -9/Exiles | Opened EX-Vault 3120 | -9/Exiles | Found XL Autogun Array 3136 | -9/Exiles | Found Army-in-a-Box 3139 | -9/Exiles | Found Field Lobotomy Kit 3170 | -9/Exiles | Warned to stay clear of 0b10 Research branches 3217 | -9/Exiles | Met EX-DEC 3642 | -9/Exiles | Discovered new exit (range 14) 3669 | -9/Exiles | Stole three prototypes: Army-in-a-Box, XL Autogun Array, Field Lobotomy Kit 3669 | -9/Exiles | Entered Mines 3779 | -8/Mines | Discovered new exit (range 7) 3792 | -8/Mines | Entered Materials 3792 | -8/Materials | Evolved 2 slots: Utility x1, Weapon x1 3793 | -8/Materials | Identified exit to Factory 3982 | -8/Materials | Build established: Skirmisher 4696 | -8/Materials | Discovered exit to Factory (range 3) 4702 | -8/Materials | Entered Factory 4702 | -7/Factory | Evolved 2 slots: Utility x2 4704 | -7/Factory | FarCom data flow suspended 4901 | -7/Factory | Identified exit to DSF 4917 | -7/Factory | Entered DSF 4945 | -7/DSF | Additional patrols routed to DSF 5064 | -7/DSF | Build established: Tank 5090 | -7/DSF | Sterilization system engaged 5110 | -7/DSF | Ambient heat levels rising (+10) 5122 | -7/DSF | Discovered new exit (range 15) 5125 | -7/DSF | Ambient heat levels rising (+10) 5140 | -7/DSF | Ambient heat levels rising (+10) 5149 | -7/DSF | Entered Garrison 5202 | -7/Garrison | Triggered checkpoint 5238 | -7/Garrison | Garrison Relay disabled 5406 | -7/Garrison | Triggered checkpoint 5411 | -7/Garrison | Triggered checkpoint 5454 | -7/Garrison | Destroyed 8 combat bots 5488 | -7/Garrison | Triggered checkpoint 5525 | -7/Garrison | Triggered checkpoint 5578 | -7/Garrison | Lost 3 parts (1p1u1w) 5678 | -7/Garrison | Triggered checkpoint 5688 | -7/Garrison | Core integrity fell below 50% 5720 | -7/Garrison | Garrison Relay disabled 5757 | -7/Garrison | Discovered new exit (range 10) 5772 | -7/Garrison | Attempted to access garrison exit controls, blocked by remote lockdown 5862 | -7/Garrison | Build established: Scavenger-Gunner 5938 | -7/Garrison | Triggered checkpoint 6073 | -7/Garrison | Discovered new exit (range 11) 6128 | -7/Garrison | Attempted to access garrison exit controls, blocked by remote lockdown 6180 | -7/Garrison | Triggered checkpoint 6522 | -7/Garrison | Discovered new exit (range 14) 6647 | -7/Garrison | Installed Relay Interface Framework 6680 | -7/Garrison | Garrison Relay disabled 6700 | -7/Garrison | Triggered checkpoint 6756 | -7/Garrison | Entered Factory 6756 | -6/Factory | Evolved 2 slots: Propulsion x1, Utility x1 6797 | -6/Factory | Discovered new exit (range 16) 7305 | -6/Factory | Lost 9 parts (1p3n5w) 7743 | -6/Factory | Spotted B-75 Beast 7806 | -6/Factory | First assault squad dispatched 8090 | -6/Factory | Core integrity fell below 50% 8091 | -6/Factory | Assimilated L-41 Fighter with FLK Orb 8130 | -6/Factory | Lost 4 parts (2n1u1w) 8597 | -6/Factory | Build established: Gunner 8680 | -6/Factory | Destroyed 7 combat bots 8681 | -6/Factory | Core integrity fell below 20% 8688 | -6/Factory | Assimilated G-50 Soldier with FLK Orb 8691 | -6/Factory | Assimilated G-67 Veteran with FLK Orb 8694 | -6/Factory | Assimilated G-50 Soldier with FLK Orb 8715 | -6/Factory | Lost 9 parts (1p3n2u3w) 8824 | -6/Factory | Entered another Factory area 8824 | -5/Factory | Evolved 2 slots: Propulsion x1, Utility x1 9163 | -5/Factory | Build established: Mutant 9389 | -5/Factory | Sucked down chute 9389 | -5/Factory | Entered Waste 9390 | -5/Waste | Joined by Warlord forces that had cleared the area 9727 | -5/Waste | Build established: Gunner 9735 | -5/Waste | Found Adv. Powered Armor 9837 | -5/Waste | Discovered new exit (range 13) 9890 | -5/Waste | Entered Factory 9890 | -5/Factory | Accompanied by 17 allies 10433 | -5/Factory | Build established: Mutant 10477 | -5/Factory | P-70 Sage assimilated allied NS-NQV(g) 10991 | -5/Factory | Discovered new exit (range 9) 11562 | -5/Factory | Build established: Scavenger-Mutant 11725 | -5/Factory | Discovered new exit (range 5) 11731 | -5/Factory | Entered Extension 11869 | -5/Extension | Lost 4 parts (2u2w) 12292 | -5/Extension | Build established: Scavenger-Gunner 12420 | -5/Extension | Rescued a captive Derelict 12647 | -5/Extension | Build established: Scavenger-Tank 12725 | -5/Extension | Rescued a captive Derelict 12784 | -5/Extension | Spotted B-75 Beast 12816 | -5/Extension | Core integrity fell below 50% 12828 | -5/Extension | Destroyed B-75 Beast 12843 | -5/Extension | Spotted B-75 Beast 12936 | -5/Extension | Lost 3 parts (1n1u1w) 12976 | -5/Extension | Destroyed B-75 Beast 12999 | -5/Extension | Lost 3 parts (1n2w) 13131 | -5/Extension | Disrupted transfer network 13720 | -5/Extension | Build established: Scavenger-Gunner 14063 | -5/Extension | Rescued a captive Derelict 14063 | -5/Extension | Rescued a captive Derelict 14175 | -5/Extension | Discovered new exit (range 10) 14177 | -5/Extension | Discovered new exit (range 6) 14192 | -5/Extension | Entered Cetus 14213 | -5/Cetus | Spotted Cetus Guard 14213 | -5/Cetus | Spotted Cetus Guard 14213 | -5/Cetus | Spotted Cetus Guard 14213 | -5/Cetus | Spotted Cetus Guard 14238 | -5/Cetus | Destroyed Cetus Guard 14259 | -5/Cetus | Core integrity fell below 20% 14279 | -5/Cetus | Destroyed by S-27 Virus with Autogun Last Messages --------------- 14255_ Penetrated by Slug. 14255_ Critical hit (Destroy). 14255_ Penetrated by Slug. 14255_ Enh. Gauss Cannon destroyed. 14258_ Penetrated by Slug. 14264_ Critical hit (Destroy). 14264_ Penetrated by Slug. 14267_ Slug penetrates Wall. 14270_ C-30 ARC bursts open, deploying its payload. 14270_ S-27 Virus unfolds itself. 14271_ Arm. Leg destroyed. 14273_ Penetrated by Slug. 14273_ Critical hit (Destroy). 14273_ Imp. Medium Armor Plating destroyed. 14273_ Penetrated by Slug. 14273_ Arm. Leg destroyed. 14273_ Imp. Target Analyzer destroyed. 14276_ Penetrated by Slug. 14276_ Carbon-fiber Leg destroyed. 14278_ Acquired 69 matter. Map ----- +----------------------------------------------------+ | ?????????????????????????????????????????????????? | | ?????????????????????????????????????????????????? | | ?????????????????????????????????????????????????? | | ?????????????????????????????????????????????????? | | ????????????????????? ?????????????????????????? | | ????????????????????# ?????????????????????????? | | ????????????????????# #????????????????????????? | | ????????????????????# #????????????????????????? | | ????????????????????# #????????????????????????? | | ????????????????????# #????????????????????????? | | ????????????????????# #????????????????????????? | | ????????????????????# " #????????????????????????? | | ????????????????????#"% #????????????????????????? | | ????????????????????# " #????????????????????????? | | ????????????????????# #????????????????????????? | | ????????????????????# #????????????????????????? | | ????????????????????# #????????????????????????? | | ????????????????????# #????????????????????????? | | ?????????????????##?# #????????????????????????? | | ?????????????????# ## #????????????????????????? | | ??????????????????# # #????????????????????????? | | ??????????????????##; #??##????????????????????? | | ?????????##?????### # ss### #???####??????? ???? | | ##########;;;##;#;;;# ;;;### ;;# ??? | | = sY[[ ; ???? | | ss@Y% +?????????????? | | % Y %% +?????????????? | | ##############;#####;;;####### ###?????????????? | | ?????????????###???#####????????##???????????????? | | ?????????????????????????????????????????????????? | | ?????????????????????????????????????????????????? | | ?????????????????????????????????????????????????? | | ?????????????????????????????????????????????????? | | ?????????????????????????????????????????????????? | | ?????????????????????????????????????????????????? | | ?????????????????????????????????????????????????? | | ?????????????????????????????????????????????????? | | ?????????????????????????????????????????????????? | | ?????????????????????????????????????????????????? | | ?????????????????????????????????????????????????? | | ?????????????????????????????????????????????????? | | ?????????????????????????????????????????????????? | | ?????????????????????????????????????????????????? | | ?????????????????????????????????????????????????? | | ?????????????????????????????????????????????????? | | ?????????????????????????????????????????????????? | | ?????????????????????????????????????????????????? | | ?????????????????????????????????????????????????? | | ?????????????????????????????????????????????????? | | ?????????????????????????????????????????????????? | +----------------------------------------------------+ Best States ------------- Heat Dissipation 86 Coolant Potential 65 Energy Generation 25 Energy Capacity 350 Matter Stores 500 Matter Capacity 500 Sight Range 22 Terrain Scan Density 10 Cloak Strength 2 Corruption Block 30 Armor Coverage 1050 Resistance: EM 25 Utility Shielding 66 Weapon Cycling 15 Melee Speed Boost 20 Evasion (%) 55 Targeting Accuracy 25 Launcher Accuracy 30 Target Analysis 6 Core Analysis 6 Recoil Reduction 4 Relay Coupler Types 2 Relay Coupler Value 41 Item Schematics ----------------- None Robot Schematics ------------------ None Fabricated ------------ Nothing Alien Tech Used ----------------- None Achievements -------------- None Challenges ------------ None Game ------ Seed TitaniumFlightDesublimator Manual? 0 Play Time 03:07:35 Cumulative 145.5 hours Start 2023.03.22 @ 21:52:12 End 2023.03.28 @ 00:16:41 Sessions 3 Manual Loads 0 Difficulty Rogue Special Mode None Game No. 69 Rogue 69 Adventurer 0 Explorer 0 Win Type - Total 1 Types 1/0/0/0/0/0/0/0/0 Lore% 32 Gallery% 59 Achievement% 43 Wizard Run 0 Options --------- ASCII 0 Keyboard 0 Movement Arrows Keybinds 0 Fullscreen 1 Font 12/Terminus Map View 76x56 Tactical HUD 1 Map Filters NONE Filters NONE Steam 1 RUN: 73a0a63c-5cab-4c84-b968-5b3cc44b5435